Workbook

Sheet Параметры
A1: Артикул | B1: Наименование | C1: Цена | D1: Объем | E1: Вес | F1: Кратность | G1: в упак | H1: в паллете уп
A2: Артикул 1 | B2: Изделие Е | C2: 5.73 | D2: 8e-05 | E2: 0.048 | F2: 18000 | G2: 200 | H2: 90
A3: Артикул 2 | B3: Изделие Б | C3: 7.5 | D3: 0.000173 | E3: 0.085 | F3: 10560 | G3: 120 | H3: 88
A4: Артикул 3 | B4: Изделие Н | C4: 7.1 | D4: 0.000167 | E4: 0.077 | F4: 10080 | G4: 144 | H4: 70
A5: Артикул 4 | B5: Изделие Д | C5: 9.52 | D5: 0.000271 | E5: 0.104 | F5: 6048 | G5: 84 | H5: 72
A6: Артикул 5 | B6: Изделие С | C6: 9.41 | D6: 0.000229 | E6: 0.103 | F6: 7680 | G6: 96 | H6: 80
A7: Артикул 6 | B7: Изделие В | C7: 12.76 | D7: 0.000416 | E7: 0.116 | F7: 4000 | G7: 50 | H7: 80
A8: Артикул 7 | B8: Изделие А | C8: 16.31 | D8: 0.000625 | E8: 0.122 | F8: 2304 | G8: 32 | H8: 72
A9: Артикул 8 | B9: Изделие М | C9: 21.05 | D9: 0.00064 | E9: 0.237 | F9: 2400 | G9: 30 | H9: 80

Sheet Накладная
B2: НАКЛАДНАЯ № | C2: 273 | D2: от | E2: 2015-11-05
B4: Грузоотправитель | C4: Склад Первый | T4: Заполняем ячейки H9:I16, I31:I33 и применяем фильтр.
T5: Подскажите, как сохранить данные (без формул) с диапазона A1:E33 (с учетом фильтра) в новую книгу с именем "Накладная № C2 от E2" с одним листом ("Лист1") в эту же папку?
B6: Грузополучатель | C6: Склад Второй
A8: № п/п | B8: Наименование товара | C8: Артикул | D8: Ед. изм | E8: Количество | F8: Вес | G8: Мест | H8: Упаковки | I8: Паллеты | J8: Брутто 1 м | K8: в паллете уп | L8: в уп. М | M8: Цена | N8: Сумма | O8: Объём 1 п.м. | P8: Общий V, м3
A9: =IF(E9>0,1) -> FALSE | B9: Изделие Е | C9: Артикул 1 | D9: м | E9: =I9*K9*L9+H9*L9 -> 0 | F9: =J9*E9 -> 0 | G9: =I9*K9+H9 -> 0 | J9: =VLOOKUP(C9,Параметры,5,0) -> 0.048 | K9: =VLOOKUP(C9,Параметры,8,0) -> 90 | L9: =VLOOKUP(C9,Параметры,7,0) -> 200 | M9: =VLOOKUP(C9,Параметры,3,0) -> 5.73 | N9: =M9*E9 -> 0 | O9: =VLOOKUP(C9,Параметры,4,0) -> 8e-05 | P9: =O9*E9 -> 0
A10: =IF(E10>0,A9+1,A9) -> 1 | B10: Изделие Б | C10: Артикул 2 | D10: м | E10: 6720 | F10: =J10*E10 -> 571.2 | G10: =I10*K10+H10 -> 56 | H10: 56 | J10: 0.085 | K10: 88 | L10: 120 | M10: 7.5 | N10: =M10*E10 -> 50400 | O10: 0.000173 | P10: =O10*E10 -> 1.16256
A11: =IF(E11>0,A10+1,A10) -> 1 | B11: Изделие Н | C11: Артикул 3 | D11: м | E11: 0 | F11: 0 | G11: 0 | J11: 0.077 | K11: 70 | L11: 144 | M11: 7.1 | N11: 0 | O11: 0.000167 | P11: 0
A12: 1 | B12: Изделие Д | C12: Артикул 4 | D12: м | E12: 0 | F12: 0 | G12: 0 | J12: 0.104 | K12: 72 | L12: 84 | M12: 9.52 | N12: 0 | O12: 0.000271 | P12: 0
A13: 2 | B13: Изделие С | C13: Артикул 5 | D13: м | E13: 38400 | F13: 3955.2 | G13: 400 | I13: 5 | J13: 0.103 | K13: 80 | L13: 96 | M13: 9.41 | N13: 361344 | O13: 0.000229 | P13: 8.7936
A14: 2 | B14: Изделие В | C14: Артикул 6 | D14: м | E14: 0 | F14: 0 | G14: 0 | J14: 0.116 | K14: 80 | L14: 50 | M14: 12.76 | N14: 0 | O14: 0.000416 | P14: 0
A15: 3 | B15: Изделие А | C15: Артикул 7 | D15: м | E15: 50688 | F15: 6183.936 | G15: 1584 | I15: 22 | J15: 0.122 | K15: 72 | L15: 32 | M15: 16.31 | N15: 826721.28 | O15: 0.000625 | P15: 31.68
A16: 3 | B16: Изделие М | C16: Артикул 8 | D16: м | E16: 0 | F16: 0 | G16: 0 | J16: 0.237 | K16: 80 | L16: 30 | M16: 21.05 | N16: 0 | O16: 0.00064 | P16: 0
A17: Итого | D17: м | E17: =SUM(E9:E16) -> 95808 | F17: =SUM(F9:F16) -> 10710.336 | G17: =SUM(G9:G16) -> 2040 | H17: =SUM(N9:N16) -> 1238465.28
F18: Масса | G18: Мест | H18: Сумма
B20: Отпуск разрешил | D20: Иванов И.И | F20: Объём | G20: =SUM(P9:P16) -> 41.63616 | H20: Доверен. | I20: =C2 -> 273
B22: Отпуск груза произвёл | D22: Петров П.П
B24: Груз к перевозке принял | D24: Сидоров С.С.
C27: =CONCATENATE("Доверенность №"," ",I20) -> Доверенность № 273 | D27: от | E27: =E2 -> 2015-11-05
A28: Тара к перемещению: | E28: тара
E29: тара
A30: № п/п | B30: Наименование товара | C30: Артикул | D30: Ед. изм | E30: Количество | F30: =F17+I30 -> 10738.336 | I30: =SUM(I31:I33) -> 28
A31: =IF(E31>0,1) -> FALSE | B31: Поддон 2000х800мм | C31: А | D31: шт | E31: =I31*K31*L31+H31*L31 -> 0 | F31: =J31*G31 -> 0 | G31: =I31*K31+H31 -> 0 | J31: 150 | K31: 1 | L31: 1
A32: =IF(E32>0,A31+1,A31) -> 1 | B32: Поддон 120х1000мм | C32: АА | D32: шт | E32: =I32*K32*L32+H32*L32 -> 22 | F32: =J32*G32 -> 1716 | G32: =I32*K32+H32 -> 22 | I32: 22 | J32: 78 | K32: 1 | L32: 1
A33: =IF(E33>0,A32+1,A32) -> 2 | B33: Поддон 1200х800мм | C33: ААА | D33: шт | E33: =I33*K33*L33+H33*L33 -> 6 | F33: =J33*G33 -> 108 | G33: =I33*K33+H33 -> 6 | I33: 6 | J33: 18 | K33: 1 | L33: 1
